fUST/lending_fUST_20250724
["ID","MTS","AMOUNT","RATE_DAILY","PERIOD"]
[374524882,1753336241857,-423.88460427,0.00019452,2]
[374524883,1753336241869,-204.65519776,0.00019452,2]
[374524884,1753336241879,-1696.11,0.00019452,2]
[374524885,1753336241888,-460.0,0.00019452,2]
[374524886,1753336241898,-460.0,0.00019452,2]
[374524887,1753336241906,-460.0,0.00019452,2]
[374524888,1753336241916,-582.15,0.00019452,2]
[374524889,1753336241926,-460.0,0.00019452,2]
[374524890,1753336241935,-460.0,0.00019452,2]
[374524891,1753336241945,-460.0,0.00019452,2]
[374524892,1753336241954,-460.0,0.00019452,2]
[374524893,1753336241964,-460.0,0.00019452,2]
[374524894,1753336241973,-460.0,0.00019452,2]
[374524895,1753336241983,-460.0,0.00019452,2]
[374524896,1753336241992,-460.0,0.00019452,2]
[374524897,1753336242002,-460.0,0.00019452,2]
[374524898,1753336242011,-304.68469093,0.00019452,2]
[374524899,1753336242021,-460.0,0.00019452,2]
[374524900,1753336242031,-460.0,0.00019452,2]
[374524901,1753336242042,-460.0,0.00019452,2]
[374524902,1753336242051,-460.0,0.00019452,2]
[374524903,1753336242061,-860.9,0.00019452,2]
[374524904,1753336242070,-460.0,0.00019452,2]
[374524905,1753336242080,-407.41580795,0.00019452,2]
[374524906,1753336242089,-460.0,0.00019452,2]
[374524907,1753336242099,-460.0,0.00019452,2]
[374524908,1753336242112,-460.0,0.00019452,2]
[374524909,1753336242121,-460.0,0.00019452,2]
[374524910,1753336242131,-460.0,0.00019452,2]
[374524911,1753336242141,-460.0,0.00019452,2]
[374524912,1753336242151,-460.0,0.00019452,2]
[374524913,1753336242160,-586.74,0.00019452,2]
[374524914,1753336242170,-460.0,0.00019452,2]
[374524915,1753336242179,-460.0,0.00019452,2]
[374524916,1753336242189,-460.0,0.00019452,2]
[374524917,1753336242198,-460.0,0.00019452,2]
[374524918,1753336242208,-460.0,0.00019452,2]
[374524919,1753336242217,-460.0,0.00019452,2]
[374524920,1753336242227,-460.0,0.00019452,2]
[374524921,1753336242238,-368.32373879,0.00019452,2]
[374524922,1753336242248,-704.71,0.00019452,2]
[374524923,1753336242258,-460.0,0.00019452,2]
[374524924,1753336242267,-460.0,0.00019452,2]
[374524925,1753336242277,-460.0,0.00019452,2]
[374524926,1753336242287,-460.0,0.00019452,2]
[374524927,1753336242297,-460.0,0.00019452,2]
[374524928,1753336242307,-184.93695134,0.00019452,2]
[374524929,1753336242318,-460.0,0.00019452,2]
[374524930,1753336242327,-460.0,0.00019452,2]
[374524931,1753336242337,-460.0,0.00019452,2]
[374524932,1753336242347,-460.0,0.00019452,2]
[374524933,1753336242362,-460.0,0.00019452,2]
[374524934,1753336242374,-460.0,0.00019452,2]
[374524935,1753336242383,-460.0,0.00019452,2]
[374524936,1753336242393,-460.0,0.00019452,2]
[374524937,1753336242403,-460.0,0.00019452,2]
[374524938,1753336242413,-460.0,0.00019452,2]
[374524939,1753336242422,-460.0,0.00019452,2]
[374524940,1753336242433,-464.0640637,0.00019452,2]
[374524941,1753336242444,-460.0,0.00019452,2]
[374524942,1753336242453,-460.0,0.00019452,2]
[374524943,1753336242463,-460.0,0.00019452,2]
[374524944,1753336242472,-460.0,0.00019452,2]
[374524945,1753336242482,-460.0,0.00019452,2]
[374524946,1753336242491,-460.0,0.00019452,2]
[374524947,1753336242500,-460.0,0.00019452,2]
[374524948,1753336242510,-460.0,0.00019452,2]
[374524949,1753336242519,-460.0,0.00019452,2]
[374524950,1753336242529,-460.0,0.00019452,2]
[374524951,1753336242538,-460.0,0.00019452,2]
[374524952,1753336242548,-460.0,0.00019452,2]
[374524953,1753336242557,-460.0,0.00019452,2]
[374524955,1753336242568,-460.0,0.00019452,2]
[374524957,1753336242578,-281.22,0.00019452,2]
[374524958,1753336242588,-460.0,0.00019452,2]
[374524959,1753336242602,-460.0,0.00019452,2]
[374524960,1753336242615,-460.0,0.00019452,2]
[374524961,1753336242626,-460.0,0.00019452,2]
[374524962,1753336242636,-460.0,0.00019452,2]
[374524963,1753336242645,-809.15,0.00019452,2]
[374524964,1753336242664,-460.0,0.00019452,2]
[374524965,1753336242676,-2133.98,0.00019452,2]
[374524966,1753336242686,-460.0,0.00019452,2]
[374524967,1753336242696,-460.0,0.00019452,2]
[374524968,1753336242705,-460.0,0.00019452,2]
[374524969,1753336242715,-641.71,0.00019452,2]
[374524970,1753336242725,-460.0,0.00019452,2]
[374524971,1753336242735,-460.0,0.00019452,2]
[374524972,1753336242745,-460.0,0.00019452,2]
[374524973,1753336242754,-540.05,0.00019452,2]
[374524974,1753336242765,-460.0,0.00019452,2]
[374524975,1753336242774,-460.0,0.00019452,2]
[374524976,1753336242784,-460.0,0.00019452,2]
[374524977,1753336242793,-460.0,0.00019452,2]
[374524978,1753336242803,-460.0,0.00019452,2]
[374524979,1753336242812,-500.0,0.00019452,2]
[374524980,1753336242822,-500.0,0.00019473,2]
[374524981,1753336242832,-268.98453325,0.00019473,2]
[374524982,1753336242842,-460.0,0.00019726,2]
[374524983,1753336242852,-460.0,0.00019726,2]
[374524984,1753336242864,-151.80139244,0.00019726,2]
[374524985,1753336242873,-530.33041334,0.00019726,2]
[374524986,1753336242882,-460.0,0.00019726,2]
[374524987,1753336242895,-460.0,0.00019726,2]
[374524988,1753336242915,-1696.11,0.00019726,2]
[374524989,1753336242925,-460.0,0.00019726,2]
[374524990,1753336242935,-460.0,0.00019726,2]
[374524991,1753336242944,-582.15,0.00019726,2]
[374524992,1753336242954,-460.0,0.00019726,2]
[374524993,1753336242964,-460.0,0.00019726,2]
[374524994,1753336242974,-460.0,0.00019726,2]
[374524995,1753336242993,-460.0,0.00019726,2]
[374524996,1753336243003,-460.0,0.00019726,2]
[374524997,1753336243013,-460.0,0.00019726,2]
[374524998,1753336243022,-860.9,0.00019726,2]
[374524999,1753336243032,-460.0,0.00019726,2]
[374525000,1753336243042,-460.0,0.00019726,2]
[374525001,1753336243051,-586.74,0.00019726,2]
[374525002,1753336243061,-460.0,0.00019726,2]
[374525003,1753336243070,-460.0,0.00019726,2]
[374525004,1753336243225,-460.0,0.00019726,2]
[374525005,1753336243235,-460.0,0.00019726,2]
[374525006,1753336243244,-704.71,0.00019726,2]
[374525007,1753336243253,-460.0,0.00019726,2]
[374525008,1753336243263,-460.0,0.00019726,2]
[374525009,1753336243272,-460.0,0.00019726,2]
[374525010,1753336243282,-460.0,0.00019726,2]
[374525011,1753336243291,-460.0,0.00019726,2]
[374525012,1753336243300,-460.0,0.00019726,2]
[374525013,1753336243309,-460.0,0.00019726,2]
[374525014,1753336243319,-460.0,0.00019726,2]
[374525015,1753336243328,-460.0,0.00019726,2]
[374525016,1753336243337,-460.0,0.00019726,2]
[374525017,1753336243349,-460.0,0.00019726,2]
[374525018,1753336243360,-460.0,0.00019726,2]
[374525019,1753336243371,-442.80389605,0.00019726,2]
[374525020,1753336243380,-460.0,0.00019726,2]
[374525021,1753336243389,-460.0,0.00019726,2]
[374525022,1753336243400,-460.0,0.00019726,2]
[374525023,1753336243410,-460.0,0.00019726,2]
[374525024,1753336243419,-460.0,0.00019726,2]
[374525025,1753336243429,-460.0,0.00019726,2]
[374525026,1753336243438,-460.0,0.00019726,2]
[374525027,1753336243447,-460.0,0.00019726,2]
[374525028,1753336243456,-460.0,0.00019726,2]
[374525029,1753336243466,-460.0,0.00019726,2]
[374525030,1753336243476,-460.0,0.00019726,2]
[374525031,1753336243485,-460.0,0.00019726,2]
[374525032,1753336243495,-809.15,0.00019726,2]
[374525034,1753336243504,-460.0,0.00019726,2]
[374525035,1753336243514,-2133.98,0.00019726,2]
[374525036,1753336243523,-460.0,0.00019726,2]
[374525037,1753336243533,-460.0,0.00019726,2]
[374525038,1753336243542,-641.71,0.00019726,2]
[374525039,1753336243551,-460.0,0.00019726,2]
[374525040,1753336243561,-540.05,0.00019726,2]
[374525041,1753336243570,-460.0,0.00019726,2]
[374525042,1753336243580,-460.0,0.00019726,2]
[374525043,1753336243589,-460.0,0.00019726,2]
[374525044,1753336243598,-164.22070886,0.00019968,2]
[374525045,1753336243608,-460.0,0.0002,2]
[374525046,1753336243620,-460.0,0.0002,2]
[374525047,1753336243629,-468.71124717,0.0002,2]
[374525048,1753336243640,-460.0,0.0002,2]
[374525049,1753336243650,-1696.11,0.0002,2]
[374525050,1753336243659,-460.0,0.0002,2]
[374525051,1753336243669,-582.15,0.0002,2]
[374525052,1753336243678,-460.0,0.0002,2]
[374525053,1753336243687,-396.48,0.0002,2]
[374525054,1753336243696,-245.27122925,0.0002,2]
[374525055,1753336243706,-460.0,0.0002,2]
[374525056,1753336243716,-460.0,0.0002,2]
[374525057,1753336243725,-860.9,0.0002,2]
[374525058,1753336243735,-460.0,0.0002,2]
[374525059,1753336243745,-586.74,0.0002,2]
[374525060,1753336243754,-460.0,0.0002,2]
[374525061,1753336243764,-460.0,0.0002,2]
[374525062,1753336243773,-704.71,0.0002,2]
[374525063,1753336243782,-460.0,0.0002,2]
[374525064,1753336243792,-460.0,0.0002,2]
[374525065,1753336243801,-460.0,0.0002,2]
[374525066,1753336243811,-460.0,0.0002,2]
[374525067,1753336243821,-460.0,0.0002,2]
[374525068,1753336243831,-460.0,0.0002,2]
[374525069,1753336243840,-460.0,0.0002,2]
[374525071,1753336243849,-460.0,0.0002,2]
[374525073,1753336243859,-460.0,0.0002,2]
[374525074,1753336243870,-460.0,0.0002,2]
[374525075,1753336243879,-460.0,0.0002,2]
[374525076,1753336243888,-460.0,0.0002,2]
[374525077,1753336243899,-460.0,0.0002,2]
[374525078,1753336243910,-460.0,0.0002,2]
[374525079,1753336243920,-460.0,0.0002,2]
[374525080,1753336243931,-460.0,0.0002,2]
[374525081,1753336243941,-809.15,0.0002,2]
[374525082,1753336243951,-460.0,0.0002,2]
[374525083,1753336243960,-2133.98,0.0002,2]
[374525084,1753336243970,-460.0,0.0002,2]
[374525085,1753336243979,-641.71,0.0002,2]
[374525086,1753336243989,-460.0,0.0002,2]
[374525087,1753336243999,-540.05,0.0002,2]
[374525088,1753336244008,-460.0,0.0002,2]
[374525089,1753336244018,-460.0,0.0002,2]
[374525090,1753336244027,-460.0,0.0002,2]
[374525091,1753336244036,-278.02060332,0.00020021,2]
[374525092,1753336244046,-244.47335639,0.00020186,2]
[374525093,1753336244056,-227.479293,0.00020187,2]
[374525094,1753336244066,-220.0,0.00020273,2]
[374525095,1753336244076,-460.0,0.00020273,2]
[374525096,1753336244085,-1696.11,0.00020273,2]
[374525097,1753336244095,-582.15,0.00020273,2]
[374525098,1753336244104,-460.0,0.00020273,2]
[374525099,1753336244115,-460.0,0.00020273,2]
[374525100,1753336244125,-460.0,0.00020273,2]
[374525101,1753336244134,-860.9,0.00020273,2]
[374525102,1753336244143,-586.74,0.00020273,2]
[374525103,1753336244152,-460.0,0.00020273,2]
[374525104,1753336244161,-704.71,0.00020273,2]
[374525105,1753336244171,-460.0,0.00020273,2]
[374525106,1753336244180,-460.0,0.00020273,2]
[374525107,1753336244189,-460.0,0.00020273,2]
[374525108,1753336244199,-460.0,0.00020273,2]
[374525109,1753336244208,-460.0,0.00020273,2]
[374525110,1753336244217,-460.0,0.00020273,2]
[374525111,1753336244227,-460.0,0.00020273,2]
[374525112,1753336244236,-460.0,0.00020273,2]
[374525113,1753336244246,-460.0,0.00020273,2]
[374525114,1753336244255,-460.0,0.00020273,2]
[374525115,1753336244264,-809.15,0.00020273,2]
[374525116,1753336244274,-460.0,0.00020273,2]
[374525117,1753336244284,-2133.98,0.00020273,2]
[374525118,1753336244293,-460.0,0.00020273,2]
[374525119,1753336244304,-641.71,0.00020273,2]
[374525120,1753336244313,-540.05,0.00020273,2]
[374525121,1753336244323,-460.0,0.00020273,2]
[374525122,1753336244333,-460.0,0.00020273,2]
[374525123,1753336244345,-215.88777038,0.00020285,2]
[374525124,1753336244355,-231.16387093,0.00020285,2]
[374525125,1753336244366,-476.79463412,0.00020285,2]
[374525126,1753336244375,-214.7213231,0.00020286,2]
[374525127,1753336244385,-160.0,0.00020286,2]
[374525128,1753336244395,-840.23756827,0.00020286,2]
[374525129,1753336244404,-526.24749348,0.00020286,2]
[374525130,1753336244414,-160.0,0.00020286,2]
[374525131,1753336244423,-160.0,0.00020286,2]
[374525132,1753336244434,-160.0,0.00020286,2]
[374525133,1753336244443,-460.0,0.00020546,2]
[374525134,1753336244453,-460.0,0.00020546,2]
[374525135,1753336244462,-486.47380722,0.00020546,2]
[374525136,1753336244472,-461.4177261,0.00020546,2]
[374525137,1753336244481,-460.0,0.00020546,2]
[374525139,1753336244490,-460.0,0.00020546,2]
[374525141,1753336244500,-460.0,0.00020546,2]
[374525143,1753336244510,-460.0,0.00020546,2]
[374525144,1753336244520,-460.0,0.00020546,2]
[374525146,1753336244529,-460.0,0.00020546,2]
[374525148,1753336244539,-460.0,0.00020547,2]
[374525149,1753336244548,-1696.11,0.00020547,2]
[374525150,1753336244557,-582.15,0.00020547,2]
[374525151,1753336244567,-460.0,0.00020547,2]
[374525152,1753336244576,-460.0,0.00020547,2]
[374525153,1753336244585,-460.0,0.00020547,2]
[374525154,1753336244594,-860.9,0.00020547,2]
[374525155,1753336244604,-586.74,0.00020547,2]
[374525156,1753336244615,-460.0,0.00020547,2]
[374525158,1753336244625,-704.71,0.00020547,2]
[374525160,1753336244634,-460.0,0.00020547,2]
[374525161,1753336244643,-460.0,0.00020547,2]
[374525162,1753336244652,-498.28964514,0.00020547,2]
[374525163,1753336244662,-460.0,0.00020547,2]
[374525164,1753336244672,-460.0,0.00020547,2]
[374525165,1753336244681,-460.0,0.00020547,2]
[374525167,1753336244691,-306.40724189,0.00020547,2]
[374525169,1753336244701,-460.0,0.00020547,2]
[374525171,1753336244710,-573.0,0.00020547,2]
[374525172,1753336244719,-809.15,0.00020547,2]
[374525173,1753336244729,-460.0,0.00020547,2]
[374525174,1753336244739,-2133.98,0.00020547,2]
[374525175,1753336244749,-460.0,0.00020547,2]
[374525176,1753336244758,-641.71,0.00020547,2]
[374525177,1753336244767,-540.05,0.00020547,2]
[374525178,1753336244776,-460.0,0.00020547,2]
[374525179,1753336244786,-379.69,0.000207,2]
[374525180,1753336244796,-460.0,0.0002082,2]
[374525181,1753336244807,-460.0,0.0002082,2]
[374525182,1753336244816,-460.0,0.0002082,2]
[374525183,1753336244826,-460.0,0.00020821,2]
[374525184,1753336244836,-1696.11,0.00020821,2]
[374525185,1753336244846,-200.0,0.00020821,10]
[374525186,1753336244855,-582.15,0.00020821,2]
[374525187,1753336244868,-460.0,0.00020821,2]
[374525188,1753336244878,-150.84426585,0.00020821,2]
[374525189,1753336244887,-460.0,0.00020821,2]
[374525190,1753336244896,-860.9,0.00020821,2]
[374525191,1753336244906,-586.74,0.00020821,2]
[374525192,1753336244916,-460.0,0.00020821,2]
[374525193,1753336244925,-704.71,0.00020821,2]
[374525194,1753336244935,-460.0,0.00020821,2]
[374525195,1753336244945,-460.0,0.00020821,2]
[374525196,1753336244955,-460.0,0.00020821,2]
[374525197,1753336244965,-460.0,0.00020821,2]
[374525198,1753336244974,-460.0,0.00020821,2]
[374525199,1753336244984,-460.0,0.00020821,2]
[374525200,1753336244993,-809.15,0.00020821,2]
[374525201,1753336245003,-460.0,0.00020821,2]
[374525202,1753336245013,-460.0,0.00020821,2]
[374525203,1753336245023,-2133.98,0.00020821,2]
[374525204,1753336245033,-641.71,0.00020821,2]
[374525205,1753336245042,-540.05,0.00020821,2]
[374525206,1753336245051,-460.0,0.00020821,2]
[374525207,1753336245060,-178.70934786,0.00020835,2]
[374525208,1753336245070,-601.043,0.00020835,2]
[374525209,1753336245079,-160.0,0.0002084,2]
[374525210,1753336245088,-164.22070886,0.00020859,2]
[374525211,1753336245097,-847.9,0.00020892,4]
[374525212,1753336245107,-420.0,0.00020899,2]
[374525213,1753336245119,-255.21550138,0.000209,4]
[374525214,1753336245128,-91958.85874478,0.0002099,2]
[374525215,1753336245137,-3116.39756097,0.00020994,2]
[374525216,1753336245147,-460.0,0.00021094,2]
[374525217,1753336245156,-460.0,0.00021094,2]
[374525218,1753336245165,-460.0,0.00021094,2]
[374525219,1753336245175,-460.0,0.00021095,2]
[374525220,1753336245184,-1696.11,0.00021095,2]
[374525221,1753336245193,-582.15,0.00021095,2]
[374525222,1753336245203,-460.0,0.00021095,2]
[374525223,1753336245212,-460.0,0.00021095,2]
[374525225,1753336245222,-860.9,0.00021095,2]
[374525227,1753336245231,-586.74,0.00021095,2]
[374525228,1753336245241,-460.0,0.00021095,2]
[374525229,1753336245251,-704.71,0.00021095,2]
[374525230,1753336245260,-460.0,0.00021095,2]
[374525231,1753336245270,-460.0,0.00021095,2]
[374525232,1753336245279,-460.0,0.00021095,2]
[374525233,1753336245289,-460.0,0.00021095,2]
[374525234,1753336245298,-460.0,0.00021095,2]
[374525235,1753336245307,-460.0,0.00021095,2]
[374525236,1753336245317,-809.15,0.00021095,2]
[374525237,1753336245326,-460.0,0.00021095,2]
[374525238,1753336245335,-460.0,0.00021095,2]
[374525239,1753336245346,-2133.98,0.00021095,2]
[374525240,1753336245359,-641.71,0.00021095,2]
[374525241,1753336245371,-540.05,0.00021095,2]
[374525242,1753336245381,-460.0,0.00021095,2]
[374525243,1753336245391,-244.47335637,0.00021112,2]
[374525244,1753336245400,-215.0738,0.00021166,2]
[374525245,1753336245409,-847.9,0.00021257,4]
[374525246,1753336245419,-579.43765627,0.00021368,2]
[374525247,1753336245431,-460.0,0.00021368,2]
[374525248,1753336245441,-460.0,0.00021368,2]
[374525249,1753336245451,-1696.11,0.00021369,2]
[374525250,1753336245461,-582.15,0.00021369,2]
[374525251,1753336245470,-460.0,0.00021369,2]
[374525252,1753336245480,-460.0,0.00021369,2]
[374525253,1753336245489,-860.9,0.00021369,2]
[374525254,1753336245499,-586.74,0.00021369,2]
[374525255,1753336245509,-460.0,0.00021369,2]
[374525256,1753336245519,-704.71,0.00021369,2]
[374525257,1753336245529,-460.0,0.00021369,2]
[374525258,1753336245539,-460.0,0.00021369,2]
[374525259,1753336245549,-460.0,0.00021369,2]
[374525260,1753336245558,-460.0,0.00021369,2]
[374525262,1753336245569,-460.0,0.00021369,2]
[374525263,1753336245578,-460.0,0.00021369,2]
[374525264,1753336245588,-809.15,0.00021369,2]
[374525265,1753336245598,-460.0,0.00021369,2]
[374525266,1753336245608,-396.38,0.00021369,2]
[374525267,1753336245620,-2133.98,0.00021369,2]
[374525268,1753336245630,-641.71,0.00021369,2]
[374525269,1753336245640,-540.05,0.00021369,2]
[374525270,1753336245650,-460.0,0.00021369,2]
[374525271,1753336245660,-260.0,0.00021388,2]
[374525272,1753336245670,-500.0,0.00021442,2]
[374525273,1753336245679,-648.0,0.00021557,2]
[374525274,1753336245689,-2157.0,0.00021557,2]
[374525275,1753336245698,-969.0,0.00021557,2]
[374525276,1753336245708,-847.9,0.00021621,4]
[374525277,1753336245717,-460.0,0.00021642,2]
[374525278,1753336245727,-460.0,0.00021642,2]
[374525279,1753336245737,-1696.11,0.00021643,2]
[374525280,1753336245747,-582.15,0.00021643,2]
[374525281,1753336245757,-460.0,0.00021643,2]
[374525282,1753336245767,-460.0,0.00021643,2]
[374525283,1753336245777,-860.9,0.00021643,2]
[374525284,1753336245787,-460.0,0.00021643,2]
[374525285,1753336245796,-586.74,0.00021643,2]
[374525286,1753336245805,-704.71,0.00021643,2]
[374525287,1753336245815,-460.0,0.00021643,2]
[374525288,1753336245824,-460.0,0.00021643,2]
[374525289,1753336245834,-460.0,0.00021643,2]
[374525290,1753336245844,-460.0,0.00021643,2]
[374525291,1753336245854,-460.0,0.00021643,2]
[374525292,1753336245866,-460.0,0.00021643,2]
[374525293,1753336245875,-809.15,0.00021643,2]
[374525294,1753336245885,-460.0,0.00021643,2]
[374525295,1753336245894,-2133.98,0.00021643,2]
[374525296,1753336245904,-641.71,0.00021643,2]
[374525297,1753336245913,-540.05,0.00021643,2]
[374525298,1753336245923,-460.0,0.00021643,2]
[374525299,1753336245932,-164.22070886,0.00021749,2]
[374525300,1753336245942,-460.0,0.00021916,2]
[374525301,1753336246050,-460.0,0.00021916,2]
[374525302,1753336246061,-1696.11,0.00021917,2]
[374525303,1753336246071,-582.15,0.00021917,2]
[374525304,1753336246090,-361.01059153,0.00021917,2]
[374525305,1753336246100,-460.0,0.00021917,2]
[374525306,1753336246110,-860.9,0.00021917,2]
[374525307,1753336246122,-460.0,0.00021917,2]
[374525308,1753336246131,-586.74,0.00021917,2]
[374525309,1753336246141,-704.71,0.00021917,2]
[374525310,1753336246150,-460.0,0.00021917,2]
[374525311,1753336246160,-460.0,0.00021917,2]
[374525312,1753336246169,-460.0,0.00021917,2]
[374525313,1753336246179,-460.0,0.00021917,2]
[374525314,1753336246188,-460.0,0.00021917,2]
[374525315,1753336246197,-460.0,0.00021917,2]
[374525316,1753336246206,-809.15,0.00021917,2]
[374525317,1753336246216,-460.0,0.00021917,2]
[374525318,1753336246225,-2133.98,0.00021917,2]
[374525319,1753336246234,-641.71,0.00021917,2]
[374525320,1753336246244,-540.05,0.00021917,2]
[374525321,1753336246254,-460.0,0.00021917,2]
[374525322,1753336246263,-240.0,0.00021936,2]
[374525323,1753336246273,-153.850549,0.00021982,2]
[374525324,1753336246282,-847.9,0.00021985,5]
[374525325,1753336246291,-244.47335637,0.00022038,2]
[374525326,1753336246301,-460.0,0.0002219,2]
[374525327,1753336246310,-1696.11,0.00022191,2]
[374525328,1753336246320,-582.15,0.00022191,2]
[374525329,1753336246329,-460.0,0.00022191,2]
[374525330,1753336246340,-860.9,0.00022191,2]
[374525331,1753336246355,-460.0,0.00022191,2]
[374525332,1753336246369,-586.74,0.00022191,2]
[374525334,1753336246379,-704.71,0.00022191,2]
[374525335,1753336246389,-460.0,0.00022191,2]
[374525336,1753336246400,-460.0,0.00022191,2]
[374525337,1753336246409,-460.0,0.00022191,2]
[374525338,1753336246419,-460.0,0.00022191,2]
[374525339,1753336246429,-460.0,0.00022191,2]
[374525340,1753336246439,-460.0,0.00022191,2]
[374525341,1753336246448,-809.15,0.00022191,2]
[374525342,1753336246457,-460.0,0.00022191,2]
[374525343,1753336246466,-2133.98,0.00022191,2]
[374525344,1753336246477,-641.71,0.00022191,2]
[374525345,1753336246486,-540.05,0.00022191,2]
[374525346,1753336246495,-460.0,0.00022191,2]
[374525347,1753336246505,-153.0,0.00022221,2]
[374525348,1753336246515,-847.9,0.0002235,5]
[374525349,1753336246525,-460.0,0.00022464,2]
[374525350,1753336246535,-1696.11,0.00022465,2]
[374525351,1753336246545,-582.15,0.00022465,2]
[374525352,1753336246555,-1627.04,0.00022465,2]
[374525353,1753336246564,-460.0,0.00022465,2]
[374525354,1753336246573,-860.9,0.00022465,2]
[374525355,1753336246583,-430.61692231,0.00022465,2]
[374525356,1753336246593,-586.74,0.00022465,2]
[374525357,1753336246602,-704.71,0.00022465,2]
[374525358,1753336246611,-460.0,0.00022465,2]
[374525359,1753336246626,-460.0,0.00022465,2]
[374525360,1753336246636,-460.0,0.00022465,2]
[374525361,1753336246646,-460.0,0.00022465,2]
[374525362,1753336246655,-460.0,0.00022465,2]
[374525363,1753336246665,-344.19209332,0.00022465,2]
[374525364,1753336246675,-809.15,0.00022465,2]
[374525365,1753336246684,-460.0,0.00022465,2]
[374525366,1753336246693,-2133.98,0.00022465,2]
[374525368,1753336246703,-641.71,0.00022465,2]
[374525369,1753336246712,-540.05,0.00022465,2]
[374525370,1753336246722,-460.0,0.00022465,2]
[374525371,1753336246732,-859.2070339,0.00022521,2]
[374525372,1753336246741,-223.0315306,0.00022535,2]
[374525373,1753336246751,-500.0,0.00022538,2]
[374525374,1753336246760,-151.0,0.000226,8]
[374525375,1753336246770,-349.063263,0.00022603,2]
[374525376,1753336246779,-164.22070886,0.00022639,2]
[374525378,1753336246788,-474.32336944,0.00022679,2]
[374525379,1753336246798,-307.5229081,0.00022685,2]
[374525380,1753336246807,-3116.39756096,0.00022697,2]
[374525381,1753336246817,-211077.2339301,0.000227,2]
[374525382,1753336246827,-847.9,0.00022714,5]
[374525383,1753336246836,-460.0,0.00022738,2]
[374525384,1753336246845,-1696.11,0.00022739,2]
[374525385,1753336246854,-582.15,0.00022739,2]
[374525386,1753336246864,-460.0,0.00022739,2]
[374525387,1753336246875,-860.9,0.00022739,2]
[374525388,1753336246884,-586.74,0.00022739,2]
[374525389,1753336246893,-704.71,0.00022739,2]
[374525390,1753336246903,-460.0,0.00022739,2]
[374525391,1753336246912,-460.0,0.00022739,2]
[374525392,1753336246922,-460.0,0.00022739,2]
[374525393,1753336246931,-460.0,0.00022739,2]
[374525394,1753336246941,-460.0,0.00022739,2]
[374525395,1753336246950,-460.0,0.00022739,2]
[374525396,1753336246960,-809.15,0.00022739,2]
[374525397,1753336246970,-2133.98,0.00022739,2]
[374525398,1753336246979,-641.71,0.00022739,2]
[374525399,1753336246989,-540.05,0.00022739,2]
[374525400,1753336246998,-446.63,0.00022739,2]
[374525401,1753336247007,-587.0,0.00022776,2]
[374525402,1753336247017,-1521.577094,0.000229,2]